[Event "Late-Titled-Tuesday-Blitz-March-12-2024"]
[Site "Chess.com"]
[Date "2024.03.12"]
[Round "4"]
[White "varunkrishnanchess"]
[Black "AlexeiShirov"]
[Result "0-1"]
[WhiteElo "2611"]
[BlackElo "2867"]
[TimeControl "180+1"]
[EndTime "14:38:26 PDT"]
[Termination "AlexeiShirov won by resignation"]

1. e4 {[%clk 0:03:00.9]} 1... e5 {[%clk 0:02:59.4]} 2. Nf3 {[%clk 0:03:00.2]}
2... Nc6 {[%clk 0:02:59.6]} 3. d4 {[%clk 0:02:57.9]} 3... exd4 {[%clk
0:02:58.6]} 4. Nxd4 {[%clk 0:02:58.8]} 4... Qf6 {[%clk 0:02:58.4]} 5. Nxc6
{[%clk 0:02:52.1]} 5... Bc5 {[%clk 0:02:57.1]} 6. Qd2 {[%clk 0:02:50.7]} 6...
dxc6 {[%clk 0:02:51.6]} 7. Bd3 {[%clk 0:02:42.5]} 7... Ne7 {[%clk 0:02:43.9]} 8.
Qf4 {[%clk 0:02:33.8]} 8... Be6 {[%clk 0:02:40.8]} 9. Qxf6 {[%clk 0:02:29.5]}
9... gxf6 {[%clk 0:02:40.1]} 10. Bf4 {[%clk 0:02:29.1]} 10... O-O-O {[%clk
0:02:38.5]} 11. Nc3 {[%clk 0:02:16.1]} 11... Ng6 {[%clk 0:02:31.2]} 12. Bg3
{[%clk 0:02:14.8]} 12... h5 {[%clk 0:02:30.3]} 13. h4 {[%clk 0:02:13.9]} 13...
Ne5 {[%clk 0:02:29.1]} 14. O-O-O {[%clk 0:02:08.8]} 14... Rhg8 {[%clk
0:02:25.5]} 15. Be2 {[%clk 0:02:01.4]} 15... Ng4 {[%clk 0:02:22.3]} 16. Bxg4
{[%clk 0:01:55.4]} 16... Rxg4 {[%clk 0:02:17.1]} 17. Rxd8+ {[%clk 0:01:52.6]}
17... Kxd8 {[%clk 0:02:16.9]} 18. Re1 {[%clk 0:01:39]} 18... Bd6 {[%clk
0:02:03.2]} 19. Bxd6 {[%clk 0:01:32.9]} 19... cxd6 {[%clk 0:02:03.3]} 20. g3
{[%clk 0:01:33.6]} 20... f5 {[%clk 0:02:03.8]} 21. e5 {[%clk 0:01:17.6]} 21...
f4 {[%clk 0:02:03.2]} 22. Ne4 {[%clk 0:01:00.9]} 22... fxg3 {[%clk 0:01:45.1]}
23. Nxg3 {[%clk 0:00:50.1]} 23... Rxh4 {[%clk 0:01:43.7]} 24. exd6 {[%clk
0:00:49.8]} 24... Kd7 {[%clk 0:01:33.7]} 25. Re5 {[%clk 0:00:45.1]} 25... Rf4
{[%clk 0:01:27.6]} 26. Rxh5 {[%clk 0:00:29.5]} 26... Rxf2 {[%clk 0:01:22.5]} 27.
Ne4 {[%clk 0:00:26.4]} 27... Rf1+ {[%clk 0:01:21.8]} 28. Kd2 {[%clk 0:00:26.3]}
28... b6 {[%clk 0:01:21.5]} 29. Rh7 {[%clk 0:00:11.9]} 29... Bd5 {[%clk
0:01:14]} 30. Nc3 {[%clk 0:00:08.4]} 30... Kxd6 {[%clk 0:01:11.3]} 31. Nxd5
{[%clk 0:00:08.4]} 31... cxd5 {[%clk 0:01:08.4]} 32. Rh8 {[%clk 0:00:08.7]}
32... Rf2+ {[%clk 0:01:06.9]} 33. Kd3 {[%clk 0:00:08.5]} 33... Rf3+ {[%clk
0:01:05.4]} 34. Kd2 {[%clk 0:00:08.4]} 34... f5 {[%clk 0:01:03.6]} 35. Ra8
{[%clk 0:00:08.2]} 35... a5 {[%clk 0:01:02.9]} 36. Rb8 {[%clk 0:00:08.1]} 36...
Kc6 {[%clk 0:01:00.6]} 37. Rc8+ {[%clk 0:00:08]} 37... Kd6 {[%clk 0:00:59.8]}
38. Rd8+ {[%clk 0:00:08.3]} 38... Kc5 {[%clk 0:00:58.5]} 39. Rc8+ {[%clk
0:00:07.3]} 39... Kd4 {[%clk 0:00:57.3]} 40. Rc6 {[%clk 0:00:06.5]} 40... Rf2+
{[%clk 0:00:56]} 41. Kd1 {[%clk 0:00:06.8]} 41... b5 {[%clk 0:00:55]} 42. Ra6
{[%clk 0:00:04.2]} 42... a4 {[%clk 0:00:53.9]} 43. Rb6 {[%clk 0:00:04.6]} 43...
Kc5 {[%clk 0:00:52.8]} 44. Rf6 {[%clk 0:00:04.8]} 44... f4 {[%clk 0:00:52.2]}
45. a3 {[%clk 0:00:05.1]} 45... f3 {[%clk 0:00:51.3]} 46. Rf4 {[%clk 0:00:03.4]}
46... d4 {[%clk 0:00:50.5]} 47. Kc1 {[%clk 0:00:03.4]} 47... Rf1+ {[%clk
0:00:48.3]} 48. Kd2 {[%clk 0:00:03.7]} 48... f2 {[%clk 0:00:47]} 49. Ke2 {[%clk
0:00:03.3]} 49... Rc1 {[%clk 0:00:46]} 50. Kxf2 {[%clk 0:00:03.7]} 50... Rxc2+
{[%clk 0:00:45.7]} 51. Kf3 {[%clk 0:00:04.2]} 51... Rxb2 {[%clk 0:00:45.5]} 52.
Ke4 {[%clk 0:00:04.7]} 52... Re2+ {[%clk 0:00:45.1]} 53. Kd3 {[%clk 0:00:04.8]}
53... Re3+ {[%clk 0:00:45.2]} 54. Kd2 {[%clk 0:00:05.2]} 54... Rxa3 {[%clk
0:00:45.7]} 55. Rf8 {[%clk 0:00:05.3]} 55... Rb3 {[%clk 0:00:45.5]} 56. Rc8+
{[%clk 0:00:04.8]} 56... Kb4 {[%clk 0:00:45.2]} 57. Rd8 {[%clk 0:00:05.2]} 57...
a3 {[%clk 0:00:43.7]} 58. Rxd4+ {[%clk 0:00:05.3]} 58... Ka5 {[%clk 0:00:43.9]}
59. Rd8 {[%clk 0:00:05.4]} 59... Rb2+ {[%clk 0:00:41.9]} 60. Kc3 {[%clk
0:00:05.3]} 60... b4+ {[%clk 0:00:40.7]} 61. Kc4 {[%clk 0:00:05.7]} 61... a2
{[%clk 0:00:35.9]} 62. Kc5 {[%clk 0:00:06.1]} 62... Rc2+ {[%clk 0:00:35.4]} 63.
Kd5 {[%clk 0:00:06.5]} 63... Ka4 {[%clk 0:00:33.2]} 64. Ra8+ {[%clk 0:00:06]}
64... Kb3 {[%clk 0:00:33.2]} 0-1

[Event "Late-Titled-Tuesday-Blitz-March-12-2024"]
[Site "Chess.com"]
[Date "2024.03.12"]
[Round "4"]
[White "TheCavemanChess"]
[Black "yobdc"]
[Result "1-0"]
[WhiteElo "2770"]
[BlackElo "2572"]
[TimeControl "180+1"]
[EndTime "14:38:26 PDT"]
[Termination "TheCavemanChess won by resignation"]

1. Nf3 {[%clk 0:03:00.9]} 1... Nf6 {[%clk 0:02:59.7]} 2. g3 {[%clk 0:03:01.8]}
2... g6 {[%clk 0:02:59.9]} 3. Bg2 {[%clk 0:03:00.1]} 3... Bg7 {[%clk 0:03:00.4]}
4. O-O {[%clk 0:03:00.5]} 4... O-O {[%clk 0:03:00.8]} 5. c4 {[%clk 0:03:00.8]}
5... d6 {[%clk 0:03:00.9]} 6. d4 {[%clk 0:03:00.6]} 6... Nc6 {[%clk 0:02:50.7]}
7. Nc3 {[%clk 0:02:53.7]} 7... e5 {[%clk 0:02:50.7]} 8. d5 {[%clk 0:02:52.5]}
8... Ne7 {[%clk 0:02:50.4]} 9. e4 {[%clk 0:02:52.5]} 9... a5 {[%clk 0:02:47.7]}
10. Ne1 {[%clk 0:02:49.6]} 10... Nd7 {[%clk 0:02:45.7]} 11. Nd3 {[%clk
0:02:49.5]} 11... c6 {[%clk 0:02:34]} 12. Be3 {[%clk 0:02:42.8]} 12... Kh8
{[%clk 0:02:14.2]} 13. c5 {[%clk 0:02:37.1]} 13... dxc5 {[%clk 0:01:59.8]} 14.
d6 {[%clk 0:02:35.9]} 14... Ng8 {[%clk 0:01:58.4]} 15. Nxc5 {[%clk 0:02:30.8]}
15... Nxc5 {[%clk 0:01:41.2]} 16. Bxc5 {[%clk 0:02:31.7]} 16... b6 {[%clk
0:01:37.7]} 17. Ba3 {[%clk 0:02:31]} 17... Ba6 {[%clk 0:01:30.8]} 18. d7 {[%clk
0:02:15.4]} 18... Bxf1 {[%clk 0:01:25.9]} 19. Bxf1 {[%clk 0:02:13.4]} 19... Nf6
{[%clk 0:01:20.6]} 20. Bh3 {[%clk 0:02:00.9]} 20... Qc7 {[%clk 0:00:49.2]} 21.
Bd6 {[%clk 0:01:55.1]} 21... Qd8 {[%clk 0:00:38.3]} 22. Bxe5 {[%clk 0:01:27.1]}
22... Ra7 {[%clk 0:00:36]} 23. Qd6 {[%clk 0:01:25.4]} 23... Nxd7 {[%clk
0:00:11.5]} 24. Bxg7+ {[%clk 0:01:25.3]} 24... Kxg7 {[%clk 0:00:12.4]} 25. Qxc6
{[%clk 0:01:18.4]} 25... Nc5 {[%clk 0:00:09.7]} 26. Rd1 {[%clk 0:01:17.5]} 26...
Qc7 {[%clk 0:00:08.9]} 27. Qd5 {[%clk 0:01:14.3]} 27... Re8 {[%clk 0:00:08.3]}
28. Nb5 {[%clk 0:01:13.9]} 28... Qb7 {[%clk 0:00:05]} 29. Nxa7 {[%clk
0:01:11.5]} 29... Qxa7 {[%clk 0:00:05.9]} 30. Bg2 {[%clk 0:01:07.3]} 30... Qc7
{[%clk 0:00:05.5]} 31. h4 {[%clk 0:01:06.8]} 31... h5 {[%clk 0:00:05.3]} 32. Kh2
{[%clk 0:01:02.3]} 32... Re7 {[%clk 0:00:05.6]} 33. Qd4+ {[%clk 0:01:01.6]}
33... f6 {[%clk 0:00:05.3]} 34. Qc4 {[%clk 0:00:59.8]} 34... Rd7 {[%clk
0:00:04.6]} 35. Rd5 {[%clk 0:01:00.1]} 35... Rxd5 {[%clk 0:00:03.6]} 36. exd5
{[%clk 0:00:59.2]} 36... Qe5 {[%clk 0:00:03.9]} 37. Qb5 {[%clk 0:00:57.4]} 37...
Qd6 {[%clk 0:00:03.8]} 38. Qc6 {[%clk 0:00:56.8]} 38... Qxc6 {[%clk 0:00:04.2]}
39. dxc6 {[%clk 0:00:57.2]} 39... Na6 {[%clk 0:00:04.8]} 40. Be4 {[%clk
0:00:44.4]} 40... f5 {[%clk 0:00:05]} 41. Bd5 {[%clk 0:00:44.8]} 41... Nc7
{[%clk 0:00:04.5]} 42. Bb3 {[%clk 0:00:43.3]} 42... Kf6 {[%clk 0:00:04.3]} 43.
f4 {[%clk 0:00:42.9]} 43... b5 {[%clk 0:00:02.7]} 44. a3 {[%clk 0:00:41.4]}
44... Ke7 {[%clk 0:00:03]} 45. Kg2 {[%clk 0:00:40.8]} 45... a4 {[%clk
0:00:01.9]} 46. Ba2 {[%clk 0:00:40.9]} 46... Na6 {[%clk 0:00:01.4]} 47. Kf3
{[%clk 0:00:38.3]} 47... b4 {[%clk 0:00:01.7]} 48. Bc4 {[%clk 0:00:37.4]} 48...
bxa3 {[%clk 0:00:01.1]} 49. bxa3 {[%clk 0:00:37.8]} 49... Nc5 {[%clk 0:00:01.4]}
50. Ke3 {[%clk 0:00:36.7]} 50... Ne4 {[%clk 0:00:01.6]} 51. Kd4 {[%clk 0:00:27]}
51... Nxg3 {[%clk 0:00:01.8]} 52. Ke5 {[%clk 0:00:27.6]} 52... Kd8 {[%clk
0:00:02]} 53. Bf7 {[%clk 0:00:22.9]} 53... Kc7 {[%clk 0:00:02.4]} 54. Bxg6
{[%clk 0:00:23.4]} 54... Kxc6 {[%clk 0:00:02.9]} 55. Be8+ {[%clk 0:00:23.2]}
55... Kc5 {[%clk 0:00:03]} 56. Bxa4 {[%clk 0:00:24.1]} 56... Ne2 {[%clk
0:00:02.7]} 57. Kxf5 {[%clk 0:00:21.9]} 57... Nd4+ {[%clk 0:00:03.3]} 58. Kg5
{[%clk 0:00:21.3]} 58... Nf3+ {[%clk 0:00:03.4]} 59. Kxh5 {[%clk 0:00:21.4]}
59... Kd6 {[%clk 0:00:04.3]} 60. Kg4 {[%clk 0:00:21.6]} 60... Nd4 {[%clk
0:00:04.3]} 61. Bd1 {[%clk 0:00:21.7]} 61... Ke7 {[%clk 0:00:04.4]} 62. a4
{[%clk 0:00:22.2]} 62... Kf6 {[%clk 0:00:04.8]} 63. a5 {[%clk 0:00:22.5]} 63...
Nb5 {[%clk 0:00:04.8]} 64. a6 {[%clk 0:00:22.5]} 64... Na7 {[%clk 0:00:05.3]}
65. h5 {[%clk 0:00:21.7]} 1-0

[Event "Late-Titled-Tuesday-Blitz-March-12-2024"]
[Site "Chess.com"]
[Date "2024.03.12"]
[Round "4"]
[White "OverallStranger"]
[Black "zajka-molotok"]
[Result "0-1"]
[WhiteElo "2395"]
[BlackElo "2570"]
[TimeControl "180+1"]
[EndTime "14:38:29 PDT"]
[Termination "zajka-molotok won by resignation"]

1. e4 {[%clk 0:03:00.9]} 1... c5 {[%clk 0:02:59.9]} 2. Nc3 {[%clk 0:02:57.9]}
2... Nc6 {[%clk 0:02:57.6]} 3. Bb5 {[%clk 0:02:58.5]} 3... g6 {[%clk 0:02:57.2]}
4. Bxc6 {[%clk 0:02:56.8]} 4... dxc6 {[%clk 0:02:56.6]} 5. d3 {[%clk 0:02:57.7]}
5... Bg7 {[%clk 0:02:56.3]} 6. Be3 {[%clk 0:02:58]} 6... b6 {[%clk 0:02:54.8]}
7. Qd2 {[%clk 0:02:58.5]} 7... e5 {[%clk 0:02:51.1]} 8. h3 {[%clk 0:02:55.2]}
8... Nf6 {[%clk 0:02:45.3]} 9. Bh6 {[%clk 0:02:54.5]} 9... O-O {[%clk
0:02:42.3]} 10. Bxg7 {[%clk 0:02:52]} 10... Kxg7 {[%clk 0:02:43.2]} 11. f4
{[%clk 0:02:52.5]} 11... exf4 {[%clk 0:02:38.3]} 12. Qxf4 {[%clk 0:02:51.9]}
12... Nh5 {[%clk 0:02:39]} 13. Qf2 {[%clk 0:02:46.5]} 13... Qd4 {[%clk
0:02:26.5]} 14. Qd2 {[%clk 0:02:35.2]} 14... Ng3 {[%clk 0:02:16.4]} 15. Nge2
{[%clk 0:02:33.2]} 15... Qe5 {[%clk 0:02:07.7]} 16. Nxg3 {[%clk 0:02:25.7]}
16... Qxg3+ {[%clk 0:02:08.6]} 17. Qf2 {[%clk 0:02:26.1]} 17... Qxf2+ {[%clk
0:02:03]} 18. Kxf2 {[%clk 0:02:27]} 18... f5 {[%clk 0:01:58.7]} 19. Ke3 {[%clk
0:02:26.2]} 19... f4+ {[%clk 0:01:55.6]} 20. Kf3 {[%clk 0:02:24.8]} 20... g5
{[%clk 0:01:55.4]} 21. Nd1 {[%clk 0:02:06.1]} 21... h5 {[%clk 0:01:52.9]} 22.
Nf2 {[%clk 0:02:05.5]} 22... Be6 {[%clk 0:01:51.8]} 23. Rag1 {[%clk 0:01:52.5]}
23... Rad8 {[%clk 0:01:45.8]} 24. Ke2 {[%clk 0:01:48.2]} 24... a5 {[%clk
0:01:38.6]} 25. a3 {[%clk 0:01:46]} 25... c4 {[%clk 0:01:32.9]} 26. g3 {[%clk
0:01:40.4]} 26... Kh6 {[%clk 0:01:28.1]} 27. gxf4 {[%clk 0:01:38.7]} 27... Rxf4
{[%clk 0:01:26.9]} 28. Rg2 {[%clk 0:01:34.2]} 28... cxd3+ {[%clk 0:01:24]} 29.
cxd3 {[%clk 0:01:32.6]} 29... Rdf8 {[%clk 0:01:18.6]} 30. Rhg1 {[%clk
0:01:23.4]} 30... c5 {[%clk 0:01:18]} 31. Rh2 {[%clk 0:01:01]} 31... a4 {[%clk
0:01:14.3]} 32. Rg3 {[%clk 0:00:59.5]} 32... h4 {[%clk 0:01:11]} 33. Rg1 {[%clk
0:00:55]} 33... Rf3 {[%clk 0:01:06.4]} 34. Ng4+ {[%clk 0:00:51.4]} 34... Kh5
{[%clk 0:00:53.8]} 35. Nf2 {[%clk 0:00:38.8]} 35... Rg3 {[%clk 0:00:50.8]} 36.
Rhg2 {[%clk 0:00:36.2]} 36... Rff3 {[%clk 0:00:46.7]} 37. Rxg3 {[%clk
0:00:19.6]} 37... Rxg3 {[%clk 0:00:45.6]} 38. Rh1 {[%clk 0:00:20.3]} 38... c4
{[%clk 0:00:31.1]} 39. dxc4 {[%clk 0:00:18.1]} 39... Bxc4+ {[%clk 0:00:30.4]}
40. Kd2 {[%clk 0:00:18.7]} 40... Be6 {[%clk 0:00:29.2]} 41. e5 {[%clk
0:00:16.4]} 41... Kg6 {[%clk 0:00:28.6]} 42. Rf1 {[%clk 0:00:14.4]} 42... Bxh3
{[%clk 0:00:26.2]} 43. Nxh3 {[%clk 0:00:13.1]} 43... Rxh3 {[%clk 0:00:25.9]} 44.
e6 {[%clk 0:00:13.2]} 44... Rh2+ {[%clk 0:00:18.6]} 45. Kd1 {[%clk 0:00:12.3]}
45... Rh3 {[%clk 0:00:12.1]} 46. Re1 {[%clk 0:00:08.7]} 46... Rd3+ {[%clk
0:00:11.4]} 47. Ke2 {[%clk 0:00:08.6]} 47... Rd8 {[%clk 0:00:10.6]} 48. Kf3
{[%clk 0:00:09.1]} 48... Re8 {[%clk 0:00:09.5]} 49. Kg4 {[%clk 0:00:07.7]} 49...
Kf6 {[%clk 0:00:09.3]} 50. Rf1+ {[%clk 0:00:05.3]} 50... Kxe6 {[%clk 0:00:09.1]}
51. Kxg5 {[%clk 0:00:05.9]} 51... Rh8 {[%clk 0:00:08.4]} 52. Kg4 {[%clk
0:00:05.1]} 52... h3 {[%clk 0:00:08.4]} 53. Rh1 {[%clk 0:00:04.6]} 53... h2
{[%clk 0:00:08.6]} 54. Kg3 {[%clk 0:00:04.9]} 54... Kd5 {[%clk 0:00:08.9]} 55.
Kg2 {[%clk 0:00:04.4]} 55... Kc4 {[%clk 0:00:08.7]} 56. Rd1 {[%clk 0:00:04.1]}
56... h1=Q+ {[%clk 0:00:08.2]} 57. Rxh1 {[%clk 0:00:04]} 57... Rxh1 {[%clk
0:00:08.8]} 58. Kxh1 {[%clk 0:00:04.9]} 58... Kb3 {[%clk 0:00:09.1]} 0-1

[Event "Late-Titled-Tuesday-Blitz-March-12-2024"]
[Site "Chess.com"]
[Date "2024.03.12"]
[Round "4"]
[White "MaiqMaster"]
[Black "expii"]
[Result "1/2-1/2"]
[WhiteElo "2408"]
[BlackElo "2194"]
[TimeControl "180+1"]
[EndTime "14:38:31 PDT"]
[Termination "Game drawn by repetition"]

1. e4 {[%clk 0:03:00.9]} 1... c5 {[%clk 0:02:59.1]} 2. Nc3 {[%clk 0:02:59.8]}
2... d6 {[%clk 0:02:58.8]} 3. f4 {[%clk 0:02:53.8]} 3... Nc6 {[%clk 0:02:58.3]}
4. Nf3 {[%clk 0:02:53.9]} 4... g6 {[%clk 0:02:39.7]} 5. Bb5 {[%clk 0:02:51.7]}
5... Bg7 {[%clk 0:02:33.7]} 6. O-O {[%clk 0:02:51.1]} 6... Bd7 {[%clk
0:02:30.7]} 7. d3 {[%clk 0:02:49.3]} 7... a6 {[%clk 0:02:30.1]} 8. Bxc6 {[%clk
0:02:47.7]} 8... Bxc6 {[%clk 0:02:31]} 9. Qe1 {[%clk 0:02:47.3]} 9... e6 {[%clk
0:02:24.9]} 10. f5 {[%clk 0:02:42.8]} 10... Ne7 {[%clk 0:02:10.7]} 11. Bg5
{[%clk 0:02:35.3]} 11... f6 {[%clk 0:02:03.1]} 12. Bh4 {[%clk 0:02:15.5]} 12...
g5 {[%clk 0:01:55.6]} 13. Bg3 {[%clk 0:02:10]} 13... e5 {[%clk 0:01:55.2]} 14.
Nd2 {[%clk 0:02:03.4]} 14... b5 {[%clk 0:01:48.4]} 15. Qe2 {[%clk 0:01:54.5]}
15... h5 {[%clk 0:01:45.4]} 16. h4 {[%clk 0:01:54.2]} 16... g4 {[%clk
0:01:33.2]} 17. a4 {[%clk 0:01:52.1]} 17... b4 {[%clk 0:01:32.2]} 18. Nd1 {[%clk
0:01:52]} 18... d5 {[%clk 0:01:28.7]} 19. Ne3 {[%clk 0:01:50.2]} 19... d4 {[%clk
0:01:15.2]} 20. Nec4 {[%clk 0:01:44.1]} 20... O-O {[%clk 0:01:13.1]} 21. a5
{[%clk 0:01:41.3]} 21... Nc8 {[%clk 0:01:12.2]} 22. b3 {[%clk 0:01:36.1]} 22...
Nd6 {[%clk 0:00:55.5]} 23. Nxd6 {[%clk 0:01:35.1]} 23... Qxd6 {[%clk 0:00:54.7]}
24. Nc4 {[%clk 0:01:36]} 24... Qe7 {[%clk 0:00:50.3]} 25. Be1 {[%clk 0:01:34.3]}
25... Bh6 {[%clk 0:00:42.7]} 26. Bd2 {[%clk 0:01:33.8]} 26... Qg7 {[%clk
0:00:37.4]} 27. g3 {[%clk 0:01:29.8]} 27... Rae8 {[%clk 0:00:33.3]} 28. Kg2
{[%clk 0:01:15.6]} 28... Re7 {[%clk 0:00:29.9]} 29. Bxh6 {[%clk 0:01:13.5]}
29... Qxh6 {[%clk 0:00:29.3]} 30. Qd2 {[%clk 0:01:14.4]} 30... Qxd2+ {[%clk
0:00:16.6]} 31. Nxd2 {[%clk 0:01:15.3]} 31... Kg7 {[%clk 0:00:16.9]} 32. Nc4
{[%clk 0:01:15.5]} 32... Bb5 {[%clk 0:00:13.9]} 33. Nb6 {[%clk 0:01:15.6]} 33...
Rb7 {[%clk 0:00:12.6]} 34. Nd5 {[%clk 0:01:14]} 34... Bc6 {[%clk 0:00:09.9]} 35.
Nb6 {[%clk 0:01:12.3]} 35... Rxb6 {[%clk 0:00:06.8]} 36. axb6 {[%clk 0:01:12]}
36... Bb5 {[%clk 0:00:07.7]} 37. Ra5 {[%clk 0:01:09.5]} 37... Rb8 {[%clk
0:00:08.3]} 38. Rfa1 {[%clk 0:01:07.5]} 38... Rxb6 {[%clk 0:00:08.2]} 39. Kf2
{[%clk 0:01:07.7]} 39... Kf7 {[%clk 0:00:08.2]} 40. Rxb5 {[%clk 0:01:05.2]}
40... axb5 {[%clk 0:00:07.1]} 41. Ra7+ {[%clk 0:01:05.7]} 41... Kg8 {[%clk
0:00:06.8]} 42. Ke2 {[%clk 0:01:04.9]} 42... Rb8 {[%clk 0:00:06.1]} 43. Ra6
{[%clk 0:01:04.1]} 43... Kg7 {[%clk 0:00:05.8]} 44. Ra7+ {[%clk 0:01:03.3]}
44... Kg8 {[%clk 0:00:04.9]} 45. Kd2 {[%clk 0:01:00.7]} 45... Rb6 {[%clk
0:00:03.7]} 46. Kc1 {[%clk 0:00:59.7]} 46... c4 {[%clk 0:00:03.1]} 47. Kb2
{[%clk 0:00:56.2]} 47... c3+ {[%clk 0:00:02.1]} 48. Kb1 {[%clk 0:00:56]} 48...
Rb8 {[%clk 0:00:02.1]} 49. Rc7 {[%clk 0:00:52.1]} 49... Rb6 {[%clk 0:00:02.1]}
50. Rc5 {[%clk 0:00:51.3]} 50... Rb8 {[%clk 0:00:02.4]} 51. Rc6 {[%clk
0:00:51.8]} 51... Kg7 {[%clk 0:00:02.1]} 52. Rc7+ {[%clk 0:00:52.3]} 52... Kg8
{[%clk 0:00:02.6]} 53. Re7 {[%clk 0:00:52.5]} 53... Rb6 {[%clk 0:00:02.1]} 54.
Rd7 {[%clk 0:00:51.8]} 54... Rb8 {[%clk 0:00:02.2]} 55. Rd5 {[%clk 0:00:52.4]}
55... Rb6 {[%clk 0:00:02]} 56. Rc5 {[%clk 0:00:52.5]} 56... Rb8 {[%clk
0:00:02.3]} 57. Rc7 {[%clk 0:00:52.6]} 57... Rb6 {[%clk 0:00:02.2]} 58. Rc8+
{[%clk 0:00:52.8]} 58... Kg7 {[%clk 0:00:02.3]} 59. Re8 {[%clk 0:00:53]} 59...
Rb7 {[%clk 0:00:02.2]} 60. Ka2 {[%clk 0:00:50.7]} 60... Rb6 {[%clk 0:00:02.6]}
61. Kb1 {[%clk 0:00:50.7]} 61... Rb7 {[%clk 0:00:02.8]} 62. Re6 {[%clk 0:00:50]}
62... Rb8 {[%clk 0:00:02.1]} 63. Rc6 {[%clk 0:00:50.3]} 63... Rb7 {[%clk
0:00:02.4]} 64. Ra6 {[%clk 0:00:50]} 64... Rb8 {[%clk 0:00:02.6]} 65. Ra5 {[%clk
0:00:50.3]} 65... Rb7 {[%clk 0:00:02.7]} 66. Ra8 {[%clk 0:00:50.7]} 66... Rb6
{[%clk 0:00:02.9]} 67. Rd8 {[%clk 0:00:50.7]} 67... Rb7 {[%clk 0:00:03.1]} 68.
Ra8 {[%clk 0:00:50.5]} 68... Rb6 {[%clk 0:00:03.4]} 69. Ra7+ {[%clk 0:00:51]}
69... Kg8 {[%clk 0:00:03.2]} 70. Re7 {[%clk 0:00:50.1]} 70... Rb8 {[%clk
0:00:03.1]} 71. Re6 {[%clk 0:00:47.5]} 71... Kg7 {[%clk 0:00:03.1]} 72. Rd6
{[%clk 0:00:46.6]} 72... Rb7 {[%clk 0:00:03.3]} 73. Rc6 {[%clk 0:00:45.8]} 73...
Rb8 {[%clk 0:00:03.6]} 74. Rc7+ {[%clk 0:00:45]} 74... Kg8 {[%clk 0:00:03.7]}
75. Rc5 {[%clk 0:00:43.6]} 75... Kg7 {[%clk 0:00:03.4]} 76. Rc7+ {[%clk
0:00:43.5]} 1/2-1/2

[Event "Late-Titled-Tuesday-Blitz-March-12-2024"]
[Site "Chess.com"]
[Date "2024.03.12"]
[Round "4"]
[White "TimGrutter03"]
[Black "NovakRatko"]
[Result "1-0"]
[WhiteElo "2593"]
[BlackElo "2406"]
[TimeControl "180+1"]
[EndTime "14:38:32 PDT"]
[Termination "TimGrutter03 won on time"]

1. d4 {[%clk 0:03:00.9]} 1... d5 {[%clk 0:02:57.4]} 2. c4 {[%clk 0:03:01.1]}
2... c5 {[%clk 0:02:57.5]} 3. cxd5 {[%clk 0:02:59.2]} 3... Qxd5 {[%clk
0:02:58.4]} 4. dxc5 {[%clk 0:02:55.1]} 4... Qxd1+ {[%clk 0:02:57.5]} 5. Kxd1
{[%clk 0:02:56]} 5... e5 {[%clk 0:02:58]} 6. Nf3 {[%clk 0:02:50]} 6... Nc6
{[%clk 0:02:56.5]} 7. a3 {[%clk 0:02:43.9]} 7... Bxc5 {[%clk 0:02:55.5]} 8. e3
{[%clk 0:02:39.8]} 8... Bf5 {[%clk 0:02:55.1]} 9. b4 {[%clk 0:02:39.2]} 9...
O-O-O+ {[%clk 0:02:55]} 10. Nbd2 {[%clk 0:02:36.2]} 10... Bd6 {[%clk 0:02:49]}
11. Bb2 {[%clk 0:02:34.7]} 11... f6 {[%clk 0:02:48.6]} 12. e4 {[%clk 0:02:27.1]}
12... Bg6 {[%clk 0:02:39.5]} 13. Nh4 {[%clk 0:02:23.8]} 13... Nge7 {[%clk
0:02:35.1]} 14. Nxg6 {[%clk 0:02:23.9]} 14... Nxg6 {[%clk 0:02:34.3]} 15. g3
{[%clk 0:02:21.5]} 15... Be7 {[%clk 0:02:28.3]} 16. Rc1 {[%clk 0:02:18.3]} 16...
Kb8 {[%clk 0:02:27.9]} 17. Bc4 {[%clk 0:02:15.1]} 17... Nd4 {[%clk 0:02:27.3]}
18. Bd5 {[%clk 0:02:14.8]} 18... f5 {[%clk 0:02:25.6]} 19. Bxd4 {[%clk
0:02:09.4]} 19... exd4 {[%clk 0:02:23.2]} 20. Nc4 {[%clk 0:01:52.6]} 20... Bf6
{[%clk 0:02:13.2]} 21. Re1 {[%clk 0:01:38.5]} 21... Rhe8 {[%clk 0:02:05.8]} 22.
f4 {[%clk 0:01:35]} 22... fxe4 {[%clk 0:02:04.6]} 23. Bxe4 {[%clk 0:01:34.2]}
23... d3 {[%clk 0:01:39.3]} 24. Kd2 {[%clk 0:01:33.9]} 24... Ne7 {[%clk
0:01:23.6]} 25. Bxd3 {[%clk 0:01:25.6]} 25... g6 {[%clk 0:01:20.7]} 26. Kc2
{[%clk 0:01:19]} 26... Nc6 {[%clk 0:01:20.1]} 27. Rxe8 {[%clk 0:01:11.9]} 27...
Rxe8 {[%clk 0:01:18.3]} 28. Nd6 {[%clk 0:01:00]} 28... Nd4+ {[%clk 0:01:14.8]}
29. Kb1 {[%clk 0:00:50.5]} 29... Rd8 {[%clk 0:01:14.4]} 30. Ne4 {[%clk
0:00:50.4]} 30... Nb3 {[%clk 0:01:01.6]} 31. Rd1 {[%clk 0:00:43.4]} 31... Bg7
{[%clk 0:00:55]} 32. Ng5 {[%clk 0:00:41]} 32... a5 {[%clk 0:00:46.3]} 33. Nxh7
{[%clk 0:00:35.2]} 33... axb4 {[%clk 0:00:45.1]} 34. axb4 {[%clk 0:00:36.1]}
34... Rd4 {[%clk 0:00:37]} 35. Bc2 {[%clk 0:00:14.8]} 35... Rxb4 {[%clk
0:00:36.2]} 36. Bxb3 {[%clk 0:00:14.7]} 36... Rxb3+ {[%clk 0:00:36.3]} 37. Kc1
{[%clk 0:00:13.3]} 37... Rc3+ {[%clk 0:00:21.9]} 38. Kd2 {[%clk 0:00:12.6]}
38... b5 {[%clk 0:00:15.3]} 39. Nf8 {[%clk 0:00:11]} 39... b4 {[%clk 0:00:14.7]}
40. Nxg6 {[%clk 0:00:09.5]} 40... b3 {[%clk 0:00:13.5]} 41. Rb1 {[%clk
0:00:09.6]} 41... Rc2+ {[%clk 0:00:13.6]} 42. Kd3 {[%clk 0:00:10]} 42... Rc3+
{[%clk 0:00:13.3]} 43. Ke4 {[%clk 0:00:09.2]} 43... Kc7 {[%clk 0:00:13.3]} 44.
Ne5 {[%clk 0:00:09.1]} 44... Kd6 {[%clk 0:00:13.1]} 45. h4 {[%clk 0:00:08.8]}
45... Rxg3 {[%clk 0:00:08.9]} 46. h5 {[%clk 0:00:07]} 46... Bxe5 {[%clk
0:00:08.4]} 47. fxe5+ {[%clk 0:00:07.1]} 47... Ke6 {[%clk 0:00:09.1]} 48. Rh1
{[%clk 0:00:05.4]} 48... b2 {[%clk 0:00:07.5]} 49. h6 {[%clk 0:00:05.4]} 49...
Rb3 {[%clk 0:00:07.8]} 50. h7 {[%clk 0:00:04.9]} 50... Rb8 {[%clk 0:00:04.5]}
51. Rh6+ {[%clk 0:00:04.4]} 51... Ke7 {[%clk 0:00:02.8]} 52. Rh1 {[%clk
0:00:05]} 52... Ke6 {[%clk 0:00:02.1]} 53. Kf4 {[%clk 0:00:04]} 1-0